[Event "*** MasterClass Titled Tuesday Blitz"]
[Site "Chess.com"]
[Date "2017.11.07"]
[Round "7"]
[White "Rhinos1"]
[Black "GameOverBro"]
[Result "0-1"]
[WhiteElo "2050"]
[BlackElo "2333"]
[TimeControl "180+2"]
[EndTime "15:38:44 PST"]
[Termination "GameOverBro won by checkmate"]

1. e4 {[%clk 0:02:33.2]} 1... d6 {[%clk 0:03:00.3]} 2. d3 {[%clk 0:02:31.7]}
2... Nf6 {[%clk 0:03:00.8]} 3. g3 {[%clk 0:02:33]} 3... g6 {[%clk 0:02:59.6]} 4.
Bg2 {[%clk 0:02:34.4]} 4... Bg7 {[%clk 0:03:01.1]} 5. f4 {[%clk 0:02:34.9]} 5...
O-O {[%clk 0:02:59.8]} 6. Nf3 {[%clk 0:02:36.3]} 6... c5 {[%clk 0:03:00.5]} 7.
O-O {[%clk 0:02:37.6]} 7... Nc6 {[%clk 0:03:01.3]} 8. c3 {[%clk 0:02:39.1]} 8...
Qd7 {[%clk 0:02:58.9]} 9. Nbd2 {[%clk 0:02:40.1]} 9... b5 {[%clk 0:03:00]} 10.
a3 {[%clk 0:02:38.2]} 10... Bb7 {[%clk 0:03:01]} 11. Qe2 {[%clk 0:02:39.5]}
11... a5 {[%clk 0:03:01.7]} 12. Kh1 {[%clk 0:02:40.9]} 12... b4 {[%clk
0:03:02.3]} 13. a4 {[%clk 0:02:40.6]} 13... e5 {[%clk 0:02:56.1]} 14. Nc4 {[%clk
0:02:36.1]} 14... Qc7 {[%clk 0:02:48.8]} 15. fxe5 {[%clk 0:02:28.8]} 15... dxe5
{[%clk 0:02:40.5]} 16. Be3 {[%clk 0:02:29.1]} 16... Nd7 {[%clk 0:02:30.5]} 17.
Bh3 {[%clk 0:02:25.8]} 17... f5 {[%clk 0:02:20.8]} 18. exf5 {[%clk 0:02:26.3]}
18... gxf5 {[%clk 0:02:21.7]} 19. Ng5 {[%clk 0:02:27.2]} 19... Nd4+ {[%clk
0:02:22]} 20. Qg2 {[%clk 0:02:13.6]} 20... Bxg2+ {[%clk 0:02:19.6]} 21. Bxg2
{[%clk 0:02:15.5]} 21... Nc2 {[%clk 0:02:06.4]} 22. Bd5+ {[%clk 0:02:04.4]}
22... Kh8 {[%clk 0:02:04.7]} 23. Ne6 {[%clk 0:01:33.3]} 23... Qa7 {[%clk
0:02:03.6]} 24. Bg1 {[%clk 0:01:14.5]} 24... Nxa1 {[%clk 0:02:02.5]} 25. Rxa1
{[%clk 0:01:07.6]} 25... Nf6 {[%clk 0:01:52.3]} 26. Bxc5 {[%clk 0:00:50.1]}
26... Qd7 {[%clk 0:01:48.8]} 27. Nb6 {[%clk 0:00:38.7]} 27... Qf7 {[%clk
0:01:33.3]} 28. Nxf8 {[%clk 0:00:36.3]} 28... Nxd5 {[%clk 0:01:31.5]} 29. Nxa8
{[%clk 0:00:29.6]} 29... Bxf8 {[%clk 0:01:31.6]} 30. c4 {[%clk 0:00:25.2]} 30...
Bxc5 {[%clk 0:01:31.2]} 31. cxd5 {[%clk 0:00:24]} 31... Qxd5# {[%clk 0:01:32]}
0-1

[Event "*** MasterClass Titled Tuesday Blitz"]
[Site "Chess.com"]
[Date "2017.11.07"]
[Round "7"]
[White "PrinceMurad09"]
[Black "Ar4uha"]
[Result "0-1"]
[WhiteElo "2238"]
[BlackElo "2426"]
[TimeControl "180+2"]
[EndTime "15:38:44 PST"]
[Termination "Ar4uha won by resignation"]

1. e4 {[%clk 0:03:01.9]} 1... d6 {[%clk 0:03:00.7]} 2. d4 {[%clk 0:03:00.8]}
2... Nf6 {[%clk 0:03:01.8]} 3. Nc3 {[%clk 0:03:01.5]} 3... e5 {[%clk 0:03:03]}
4. Nge2 {[%clk 0:02:59.7]} 4... Be7 {[%clk 0:03:03.1]} 5. h3 {[%clk 0:03:00.8]}
5... O-O {[%clk 0:03:04]} 6. g3 {[%clk 0:03:02.1]} 6... c6 {[%clk 0:03:05.5]} 7.
Bg2 {[%clk 0:03:02.9]} 7... a5 {[%clk 0:03:05.8]} 8. a4 {[%clk 0:03:03.7]} 8...
Na6 {[%clk 0:03:06.9]} 9. O-O {[%clk 0:03:03.6]} 9... Nb4 {[%clk 0:03:08.3]} 10.
Be3 {[%clk 0:03:04.8]} 10... Be6 {[%clk 0:03:08.2]} 11. b3 {[%clk 0:03:03.3]}
11... Qc7 {[%clk 0:03:09]} 12. Qd2 {[%clk 0:03:04.3]} 12... Rad8 {[%clk
0:03:09]} 13. Rad1 {[%clk 0:03:05.2]} 13... d5 {[%clk 0:03:10]} 14. dxe5 {[%clk
0:03:00.3]} 14... Nxe4 {[%clk 0:03:10.5]} 15. Nxe4 {[%clk 0:02:55.9]} 15... dxe4
{[%clk 0:03:12.4]} 16. Qc3 {[%clk 0:02:56.2]} 16... Nd5 {[%clk 0:03:11.1]} 17.
Qd4 {[%clk 0:02:38.7]} 17... Nxe3 {[%clk 0:03:12.5]} 18. Qxe3 {[%clk 0:02:38.7]}
18... Qxe5 {[%clk 0:03:13.3]} 19. Bxe4 {[%clk 0:02:32]} 19... Qh5 {[%clk
0:03:12]} 20. g4 {[%clk 0:02:29.7]} 20... Qc5 {[%clk 0:03:06]} 21. Qf3 {[%clk
0:02:25.1]} 21... Rxd1 {[%clk 0:03:01.9]} 22. Rxd1 {[%clk 0:02:23.9]} 22... Rd8
{[%clk 0:03:03.8]} 23. Rxd8+ {[%clk 0:02:21.9]} 23... Bxd8 {[%clk 0:03:05.7]}
24. Qd3 {[%clk 0:02:07.5]} 24... Bb6 {[%clk 0:03:01.9]} 25. Qf3 {[%clk
0:01:54.7]} 25... g6 {[%clk 0:03:02.9]} 26. Bd3 {[%clk 0:01:39.8]} 26... Qe5
{[%clk 0:03:01.4]} 27. Qe4 {[%clk 0:01:34.5]} 27... Qa1+ {[%clk 0:03:00.3]} 28.
Kh2 {[%clk 0:01:30.7]} 28... Qe1 {[%clk 0:03:02.2]} 29. f4 {[%clk 0:01:10.6]}
29... Qf2+ {[%clk 0:02:57.2]} 30. Qg2 {[%clk 0:01:11.4]} 30... Qe3 {[%clk
0:02:55.2]} 31. Qe4 {[%clk 0:01:08.8]} 31... Qf2+ {[%clk 0:02:44.3]} 32. Qg2
{[%clk 0:01:08.8]} 32... Qe1 {[%clk 0:02:45.8]} 33. Qg3 {[%clk 0:00:55.8]} 33...
Bf2 {[%clk 0:02:44.1]} 34. Qf3 {[%clk 0:00:47.7]} 34... Bd5 {[%clk 0:02:07.6]}
35. Be4 {[%clk 0:00:48.5]} 35... Bxe4 {[%clk 0:01:58]} 36. Qxe4 {[%clk
0:00:48.1]} 36... Bg1+ {[%clk 0:01:59.5]} 37. Kh1 {[%clk 0:00:42.6]} 37... Be3+
{[%clk 0:01:59.9]} 0-1

[Event "*** MasterClass Titled Tuesday Blitz"]
[Site "Chess.com"]
[Date "2017.11.07"]
[Round "7"]
[White "KamilPlichta"]
[Black "Noukii"]
[Result "1-0"]
[WhiteElo "2571"]
[BlackElo "2597"]
[TimeControl "180+2"]
[EndTime "15:39:02 PST"]
[Termination "KamilPlichta won by resignation"]

1. c4 {[%clk 0:03:01.9]} 1... e5 {[%clk 0:02:58.9]} 2. Nc3 {[%clk 0:03:02]} 2...
Nf6 {[%clk 0:02:57.9]} 3. Nf3 {[%clk 0:03:02.9]} 3... Nc6 {[%clk 0:02:58.8]} 4.
e3 {[%clk 0:03:04.4]} 4... Bb4 {[%clk 0:02:53.8]} 5. Qc2 {[%clk 0:03:05.7]} 5...
O-O {[%clk 0:02:55.3]} 6. Nd5 {[%clk 0:03:06.5]} 6... Re8 {[%clk 0:02:56.6]} 7.
Qf5 {[%clk 0:03:07.8]} 7... d6 {[%clk 0:02:56.5]} 8. Nxf6+ {[%clk 0:03:09.1]}
8... Qxf6 {[%clk 0:02:57.5]} 9. Qxf6 {[%clk 0:03:10.5]} 9... gxf6 {[%clk
0:02:59.4]} 10. a3 {[%clk 0:03:12.1]} 10... Bc5 {[%clk 0:03:00.2]} 11. b4 {[%clk
0:03:14]} 11... Bb6 {[%clk 0:03:01.3]} 12. Bb2 {[%clk 0:03:15.7]} 12... a5
{[%clk 0:02:57]} 13. b5 {[%clk 0:03:17.1]} 13... Nd8 {[%clk 0:02:58]} 14. d4
{[%clk 0:03:17.5]} 14... Bg4 {[%clk 0:02:58]} 15. c5 {[%clk 0:03:14.3]} 15...
Ba7 {[%clk 0:02:41.5]} 16. b6 {[%clk 0:03:06.1]} 16... Bb8 {[%clk 0:02:42.1]}
17. bxc7 {[%clk 0:02:31.2]} 17... Bxc7 {[%clk 0:02:44]} 18. cxd6 {[%clk
0:02:32.5]} 18... Bxd6 {[%clk 0:02:44.4]} 19. dxe5 {[%clk 0:02:22.4]} 19... fxe5
{[%clk 0:02:43.4]} 20. Bb5 {[%clk 0:02:18.7]} 20... Nc6 {[%clk 0:02:39.1]} 21.
Rd1 {[%clk 0:02:17.7]} 21... Red8 {[%clk 0:02:33.9]} 22. h3 {[%clk 0:02:18.1]}
22... Bxf3 {[%clk 0:02:16.5]} 23. gxf3 {[%clk 0:02:19.3]} 23... Kf8 {[%clk
0:02:05.6]} 24. Rg1 {[%clk 0:02:17.5]} 24... h6 {[%clk 0:02:02]} 25. Rg4 {[%clk
0:02:17.5]} 25... Ke7 {[%clk 0:01:57.6]} 26. Ke2 {[%clk 0:02:10.5]} 26... Na7
{[%clk 0:01:44.1]} 27. Bd3 {[%clk 0:02:07]} 27... Rac8 {[%clk 0:01:27.7]} 28.
Rh4 {[%clk 0:02:07.4]} 28... Rh8 {[%clk 0:01:26.5]} 29. f4 {[%clk 0:02:04.9]}
29... f6 {[%clk 0:01:21.6]} 30. Bf5 {[%clk 0:02:04.5]} 30... Rc7 {[%clk
0:01:20]} 31. Rg1 {[%clk 0:02:05.7]} 31... Kf7 {[%clk 0:01:17.9]} 32. Rg6 {[%clk
0:02:00.3]} 32... Nb5 {[%clk 0:01:17.1]} 33. Rgxh6 {[%clk 0:01:55.6]} 33... Rxh6
{[%clk 0:01:19]} 34. Rxh6 {[%clk 0:01:57]} 34... Rc6 {[%clk 0:00:38]} 35. Rh7+
{[%clk 0:01:57.2]} 35... Kg8 {[%clk 0:00:39.3]} 36. Rxb7 {[%clk 0:01:56.3]}
36... Nxa3 {[%clk 0:00:40.7]} 37. fxe5 {[%clk 0:01:53.2]} 37... fxe5 {[%clk
0:00:41.2]} 38. f4 {[%clk 0:01:40.4]} 38... exf4 {[%clk 0:00:41.4]} 39. Be6+
{[%clk 0:01:38.7]} 39... Kf8 {[%clk 0:00:42]} 40. Bg7+ {[%clk 0:01:39.9]} 40...
Ke8 {[%clk 0:00:41.4]} 41. Bd7+ {[%clk 0:01:41.4]} 1-0

[Event "*** MasterClass Titled Tuesday Blitz"]
[Site "Chess.com"]
[Date "2017.11.07"]
[Round "7"]
[White "LastHeroJr"]
[Black "igorkovalenko"]
[Result "0-1"]
[WhiteElo "2391"]
[BlackElo "2777"]
[TimeControl "180+2"]
[EndTime "15:39:18 PST"]
[Termination "igorkovalenko won on time"]

1. e4 {[%clk 0:03:01.9]} 1... c6 {[%clk 0:03:00.6]} 2. d4 {[%clk 0:03:02.4]}
2... d5 {[%clk 0:03:01.4]} 3. e5 {[%clk 0:03:03.7]} 3... Bf5 {[%clk 0:03:02.3]}
4. Nf3 {[%clk 0:03:04.9]} 4... e6 {[%clk 0:03:03.7]} 5. Be2 {[%clk 0:03:06.2]}
5... Ne7 {[%clk 0:03:04.9]} 6. O-O {[%clk 0:03:06.7]} 6... Nd7 {[%clk
0:03:06.8]} 7. a4 {[%clk 0:03:07.8]} 7... h6 {[%clk 0:03:07.9]} 8. a5 {[%clk
0:03:09]} 8... Qc7 {[%clk 0:03:08.9]} 9. b4 {[%clk 0:02:58.3]} 9... g5 {[%clk
0:03:09.2]} 10. Ne1 {[%clk 0:02:58]} 10... Bg7 {[%clk 0:03:10.3]} 11. Nd3 {[%clk
0:02:54.2]} 11... f6 {[%clk 0:03:10.3]} 12. Bh5+ {[%clk 0:02:49.9]} 12... Kd8
{[%clk 0:03:02.7]} 13. exf6 {[%clk 0:02:40.8]} 13... Nxf6 {[%clk 0:03:01.1]} 14.
Ne5 {[%clk 0:02:31.5]} 14... Nxh5 {[%clk 0:02:52.4]} 15. Nf7+ {[%clk 0:02:32.2]}
15... Kd7 {[%clk 0:02:53.5]} 16. Nxh8 {[%clk 0:02:32.4]} 16... Nf4 {[%clk
0:02:51.6]} 17. Nf7 {[%clk 0:02:31.8]} 17... Rf8 {[%clk 0:02:51.7]} 18. Ne5+
{[%clk 0:02:30.8]} 18... Bxe5 {[%clk 0:02:52.8]} 19. dxe5 {[%clk 0:02:32.7]}
19... Qxe5 {[%clk 0:02:53.9]} 20. Ra3 {[%clk 0:02:25.9]} 20... Qd6 {[%clk
0:02:48.3]} 21. Rb3 {[%clk 0:02:21.8]} 21... e5 {[%clk 0:02:48.4]} 22. Re1
{[%clk 0:02:04.1]} 22... Neg6 {[%clk 0:02:46.2]} 23. Nc3 {[%clk 0:01:34]} 23...
Nh4 {[%clk 0:02:38]} 24. Bxf4 {[%clk 0:01:25.5]} 24... gxf4 {[%clk 0:02:39.2]}
25. Qh5 {[%clk 0:01:26.4]} 25... Qf6 {[%clk 0:02:37.1]} 26. b5 {[%clk 0:01:23]}
26... Rg8 {[%clk 0:02:32.1]} 27. bxc6+ {[%clk 0:01:23.3]} 27... bxc6 {[%clk
0:02:34]} 28. g3 {[%clk 0:01:20.2]} 28... Kd6 {[%clk 0:02:06.8]} 29. Rd1 {[%clk
0:01:04.8]} 29... e4 {[%clk 0:01:40.8]} 30. Ne2 {[%clk 0:00:23.5]} 30... Bg4
{[%clk 0:01:24.5]} 31. Qxh4 {[%clk 0:00:02.7]} 31... Qxh4 {[%clk 0:01:23.7]} 0-1

[Event "*** MasterClass Titled Tuesday Blitz"]
[Site "Chess.com"]
[Date "2017.11.07"]
[Round "7"]
[White "chesssharkattack"]
[Black "IamSchrodingersCat"]
[Result "1-0"]
[WhiteElo "2394"]
[BlackElo "2415"]
[TimeControl "180+2"]
[EndTime "15:39:28 PST"]
[Termination "chesssharkattack won by resignation"]

1. e4 {[%clk 0:03:01.9]} 1... c5 {[%clk 0:02:57.3]} 2. Nf3 {[%clk 0:03:02.7]}
2... d6 {[%clk 0:02:58]} 3. Bb5+ {[%clk 0:03:03.6]} 3... Nc6 {[%clk 0:02:57.9]}
4. O-O {[%clk 0:03:03.7]} 4... Bd7 {[%clk 0:02:58.6]} 5. Bxc6 {[%clk 0:03:04]}
5... Bxc6 {[%clk 0:03:00.5]} 6. Re1 {[%clk 0:03:02.8]} 6... e5 {[%clk
0:02:58.9]} 7. c3 {[%clk 0:03:01.9]} 7... g5 {[%clk 0:02:59.2]} 8. d4 {[%clk
0:03:01.3]} 8... g4 {[%clk 0:03:00.1]} 9. Ng5 {[%clk 0:03:00.1]} 9... h6 {[%clk
0:02:40.6]} 10. Qxg4 {[%clk 0:02:46.4]} 10... hxg5 {[%clk 0:02:39.8]} 11. Bxg5
{[%clk 0:02:48.3]} 11... Be7 {[%clk 0:02:37]} 12. Bc1 {[%clk 0:02:39.2]} 12...
Nf6 {[%clk 0:02:34.1]} 13. Qf5 {[%clk 0:02:38.8]} 13... Qd7 {[%clk 0:01:45.2]}
14. dxe5 {[%clk 0:02:33.1]} 14... dxe5 {[%clk 0:01:46.1]} 15. Qxe5 {[%clk
0:02:33.5]} 15... O-O-O {[%clk 0:01:45.4]} 16. Bf4 {[%clk 0:02:33.7]} 16... Bd6
{[%clk 0:01:33.6]} 17. Qxf6 {[%clk 0:02:32.7]} 17... Bxf4 {[%clk 0:01:30]} 18.
Qxf4 {[%clk 0:02:32.7]} 18... Rdg8 {[%clk 0:01:26.7]} 19. f3 {[%clk 0:01:34]}
19... Qd3 {[%clk 0:01:02.9]} 20. Nd2 {[%clk 0:01:28.1]} 20... Qc2 {[%clk
0:00:35.5]} 21. b4 {[%clk 0:01:06]} 21... c4 {[%clk 0:00:26.6]} 22. Rac1 {[%clk
0:01:04.6]} 22... Qxa2 {[%clk 0:00:25.8]} 23. Re2 {[%clk 0:01:00.5]} 23... Qa3
{[%clk 0:00:23.5]} 24. Nxc4 {[%clk 0:01:00.2]} 24... Qa6 {[%clk 0:00:18]} 25.
Nd6+ {[%clk 0:00:58.6]} 25... Kb8 {[%clk 0:00:16.1]} 26. b5 {[%clk 0:00:52.5]}
26... Qa3 {[%clk 0:00:08.4]} 27. bxc6 {[%clk 0:00:49]} 27... bxc6 {[%clk
0:00:08.3]} 28. Nb5+ {[%clk 0:00:48.9]} 28... Ka8 {[%clk 0:00:07.3]} 29. Nxa3
{[%clk 0:00:48.2]} 1-0

[Event "*** MasterClass Titled Tuesday Blitz"]
[Site "Chess.com"]
[Date "2017.11.07"]
[Round "7"]
[White "TheMagician"]
[Black "chessking2151"]
[Result "0-1"]
[WhiteElo "2244"]
[BlackElo "2374"]
[TimeControl "180+2"]
[EndTime "15:39:30 PST"]
[Termination "chessking2151 won on time"]

1. e4 {[%clk 0:03:01.9]} 1... e5 {[%clk 0:03:00.1]} 2. Nf3 {[%clk 0:03:02.5]}
2... Nc6 {[%clk 0:03:01.5]} 3. Bb5 {[%clk 0:03:03.3]} 3... a6 {[%clk 0:03:02.3]}
4. Bxc6 {[%clk 0:03:04.5]} 4... dxc6 {[%clk 0:03:04.2]} 5. O-O {[%clk
0:03:05.8]} 5... Bg4 {[%clk 0:03:01.2]} 6. d3 {[%clk 0:03:04.7]} 6... f6 {[%clk
0:02:55.3]} 7. Be3 {[%clk 0:03:04.6]} 7... Ne7 {[%clk 0:02:41.5]} 8. Nbd2 {[%clk
0:03:03.7]} 8... Ng6 {[%clk 0:02:42]} 9. h3 {[%clk 0:03:03.9]} 9... Be6 {[%clk
0:02:40.4]} 10. d4 {[%clk 0:03:04.5]} 10... Bd6 {[%clk 0:02:39.6]} 11. c3 {[%clk
0:03:03.3]} 11... O-O {[%clk 0:02:39.2]} 12. Qe2 {[%clk 0:02:49.7]} 12... Qe7
{[%clk 0:02:39.3]} 13. Rfe1 {[%clk 0:02:41.3]} 13... Rfe8 {[%clk 0:02:36.9]} 14.
Nc4 {[%clk 0:02:32.2]} 14... Kh8 {[%clk 0:02:17.1]} 15. dxe5 {[%clk 0:02:32]}
15... Nxe5 {[%clk 0:02:16.6]} 16. Nfxe5 {[%clk 0:02:32.1]} 16... fxe5 {[%clk
0:02:15]} 17. Nxd6 {[%clk 0:02:32.9]} 17... cxd6 {[%clk 0:02:16.2]} 18. c4
{[%clk 0:02:21.7]} 18... Qf7 {[%clk 0:02:14.8]} 19. b3 {[%clk 0:02:21.9]} 19...
d5 {[%clk 0:02:14.3]} 20. exd5 {[%clk 0:02:06.4]} 20... cxd5 {[%clk 0:02:16.2]}
21. cxd5 {[%clk 0:02:05.3]} 21... Bxd5 {[%clk 0:02:18.1]} 22. Red1 {[%clk
0:01:56.9]} 22... Bc6 {[%clk 0:02:17.9]} 23. Rd6 {[%clk 0:01:56]} 23... Rad8
{[%clk 0:01:43.7]} 24. Rad1 {[%clk 0:01:55.9]} 24... Rxd6 {[%clk 0:01:44.5]} 25.
Rxd6 {[%clk 0:01:56.9]} 25... h6 {[%clk 0:01:45.5]} 26. Bd2 {[%clk 0:01:26.7]}
26... Qe7 {[%clk 0:01:38.8]} 27. Bb4 {[%clk 0:01:23.9]} 27... Qg5 {[%clk
0:01:38.8]} 28. g3 {[%clk 0:01:19.4]} 28... Qf5 {[%clk 0:01:33.5]} 29. g4 {[%clk
0:00:29.3]} 29... Qf4 {[%clk 0:01:22.7]} 30. Bd2 {[%clk 0:00:17.7]} 30... Qf8
{[%clk 0:01:23.1]} 31. Qd3 {[%clk 0:00:04.9]} 31... Be4 {[%clk 0:01:06.5]} 0-1

[Event "*** MasterClass Titled Tuesday Blitz"]
[Site "Chess.com"]
[Date "2017.11.07"]
[Round "7"]
[White "michaelq2d5"]
[Black "dretch"]
[Result "1-0"]
[WhiteElo "2638"]
[BlackElo "2583"]
[TimeControl "180+2"]
[EndTime "15:39:32 PST"]
[Termination "michaelq2d5 won by resignation"]

1. d4 {[%clk 0:03:01.9]} 1... d5 {[%clk 0:02:59.8]} 2. c4 {[%clk 0:03:03.3]}
2... c6 {[%clk 0:03:00.8]} 3. Nc3 {[%clk 0:03:04.7]} 3... Nf6 {[%clk 0:02:59.7]}
4. e3 {[%clk 0:03:06]} 4... e6 {[%clk 0:02:57.4]} 5. Nf3 {[%clk 0:03:07.1]} 5...
Nbd7 {[%clk 0:02:58.4]} 6. Qc2 {[%clk 0:03:08.5]} 6... b6 {[%clk 0:02:59.3]} 7.
Bd3 {[%clk 0:03:03.3]} 7... Bb7 {[%clk 0:03:00.5]} 8. O-O {[%clk 0:03:04.3]}
8... Be7 {[%clk 0:03:01.6]} 9. b3 {[%clk 0:03:05.3]} 9... O-O {[%clk 0:03:01.4]}
10. Bb2 {[%clk 0:03:06.9]} 10... Qc7 {[%clk 0:03:01.5]} 11. Rad1 {[%clk
0:03:08]} 11... Rad8 {[%clk 0:03:01.2]} 12. Ne5 {[%clk 0:03:09.2]} 12... dxc4
{[%clk 0:02:59.8]} 13. bxc4 {[%clk 0:03:00.3]} 13... c5 {[%clk 0:02:58.6]} 14.
Nxd7 {[%clk 0:02:29.7]} 14... Qxd7 {[%clk 0:02:56.1]} 15. d5 {[%clk 0:02:29.5]}
15... a6 {[%clk 0:02:29.5]} 16. Ne4 {[%clk 0:02:25.3]} 16... Nxe4 {[%clk
0:02:25.5]} 17. Bxe4 {[%clk 0:02:26.6]} 17... exd5 {[%clk 0:02:11.7]} 18. Bxh7+
{[%clk 0:02:07.6]} 18... Kh8 {[%clk 0:02:12.6]} 19. cxd5 {[%clk 0:02:09.3]}
19... Bxd5 {[%clk 0:02:13.1]} 20. Bf5 {[%clk 0:01:44.7]} 20... Qc6 {[%clk
0:02:05.5]} 21. Qe2 {[%clk 0:01:44.3]} 21... Qh6 {[%clk 0:01:52]} 22. e4 {[%clk
0:01:35.2]} 22... Bb7 {[%clk 0:01:23.2]} 23. Bc1 {[%clk 0:01:12.6]} 23... Bg5
{[%clk 0:01:11.4]} 24. f4 {[%clk 0:01:13.5]} 24... Be7 {[%clk 0:01:11.2]} 25.
Rxd8 {[%clk 0:01:10.3]} 25... Rxd8 {[%clk 0:01:11.3]} 26. Rf3 {[%clk 0:01:11.4]}
26... Qd6 {[%clk 0:01:10.2]} 27. Rd3 {[%clk 0:01:04.8]} 27... Qf6 {[%clk
0:00:57.8]} 28. Bb2 {[%clk 0:00:51.9]} 28... Rd4 {[%clk 0:00:36.6]} 29. Bxd4
{[%clk 0:00:40.7]} 29... cxd4 {[%clk 0:00:36.4]} 30. Qh5+ {[%clk 0:00:36.6]}
30... Qh6 {[%clk 0:00:37]} 31. Qxf7 {[%clk 0:00:35.7]} 1-0

[Event "*** MasterClass Titled Tuesday Blitz"]
[Site "Chess.com"]
[Date "2017.11.07"]
[Round "7"]
[White "Zufi1811"]
[Black "MartinZumsande"]
[Result "1-0"]
[WhiteElo "2438"]
[BlackElo "2430"]
[TimeControl "180+2"]
[EndTime "15:39:36 PST"]
[Termination "Zufi1811 won by checkmate"]

1. e4 {[%clk 0:03:01.9]} 1... e6 {[%clk 0:03:01]} 2. d4 {[%clk 0:03:00.8]} 2...
d5 {[%clk 0:03:02.5]} 3. Nc3 {[%clk 0:03:02.3]} 3... Nf6 {[%clk 0:03:03.7]} 4.
e5 {[%clk 0:03:03.4]} 4... Nfd7 {[%clk 0:03:05.2]} 5. Nce2 {[%clk 0:03:05.3]}
5... c5 {[%clk 0:03:06.4]} 6. c3 {[%clk 0:03:07.2]} 6... Nc6 {[%clk 0:03:08]} 7.
Nf3 {[%clk 0:03:08.2]} 7... Qb6 {[%clk 0:03:07.8]} 8. a3 {[%clk 0:03:07.7]} 8...
a5 {[%clk 0:03:07.4]} 9. Nf4 {[%clk 0:03:07.5]} 9... cxd4 {[%clk 0:03:02.6]} 10.
cxd4 {[%clk 0:03:09.4]} 10... a4 {[%clk 0:03:01.8]} 11. h4 {[%clk 0:03:01.8]}
11... Ra7 {[%clk 0:03:00.5]} 12. Rh3 {[%clk 0:02:44.8]} 12... Na5 {[%clk
0:02:54.1]} 13. Be2 {[%clk 0:02:06.8]} 13... Nb3 {[%clk 0:02:52.8]} 14. Rb1
{[%clk 0:02:08.2]} 14... Nb8 {[%clk 0:02:34.5]} 15. Be3 {[%clk 0:02:07.2]} 15...
Bd7 {[%clk 0:02:33.7]} 16. Kf1 {[%clk 0:02:08.4]} 16... Bb5 {[%clk 0:02:34.3]}
17. Kg1 {[%clk 0:02:09.9]} 17... Nc6 {[%clk 0:02:33.4]} 18. Rg3 {[%clk
0:02:04.6]} 18... Ra8 {[%clk 0:02:32.9]} 19. Nh5 {[%clk 0:02:00.2]} 19... Bxe2
{[%clk 0:02:18]} 20. Qxe2 {[%clk 0:02:02.1]} 20... Qa6 {[%clk 0:01:44.8]} 21.
Qd1 {[%clk 0:01:49.4]} 21... Nca5 {[%clk 0:01:07.4]} 22. Nxg7+ {[%clk
0:01:48.1]} 22... Bxg7 {[%clk 0:01:08.6]} 23. Rxg7 {[%clk 0:01:50]} 23... Nc4
{[%clk 0:01:09.9]} 24. Ng5 {[%clk 0:01:48.1]} 24... Rf8 {[%clk 0:00:45.8]} 25.
Nxh7 {[%clk 0:01:09.8]} 25... Rh8 {[%clk 0:00:45]} 26. Nf6+ {[%clk 0:01:08.7]}
26... Ke7 {[%clk 0:00:44.6]} 27. Bg5 {[%clk 0:01:07.8]} 27... Qa7 {[%clk
0:00:38.5]} 28. Qf3 {[%clk 0:00:57.1]} 28... Kf8 {[%clk 0:00:38.3]} 29. Nd7+
{[%clk 0:00:40.3]} 29... Kxg7 {[%clk 0:00:36]} 30. Bf6+ {[%clk 0:00:41.1]} 30...
Kg6 {[%clk 0:00:34.1]} 31. Qg4+ {[%clk 0:00:41.5]} 31... Kh7 {[%clk 0:00:35]}
32. Qg7# {[%clk 0:00:40.3]} 1-0

[Event "*** MasterClass Titled Tuesday Blitz"]
[Site "Chess.com"]
[Date "2017.11.07"]
[Round "7"]
[White "Alexander_Donchenko"]
[Black "GM_dmitrij"]
[Result "0-1"]
[WhiteElo "2652"]
[BlackElo "2629"]
[TimeControl "180+2"]
[EndTime "15:40:03 PST"]
[Termination "GM_dmitrij won by resignation"]

1. d4 {[%clk 0:03:01.9]} 1... d5 {[%clk 0:02:59.3]} 2. c4 {[%clk 0:03:02.4]}
2... c6 {[%clk 0:03:00.6]} 3. Nf3 {[%clk 0:03:03.6]} 3... Nf6 {[%clk 0:03:01.8]}
4. Qc2 {[%clk 0:03:05.1]} 4... dxc4 {[%clk 0:03:00.3]} 5. Qxc4 {[%clk 0:03:07]}
5... Bf5 {[%clk 0:03:01.7]} 6. g3 {[%clk 0:03:07.7]} 6... e6 {[%clk 0:03:03]} 7.
Bg2 {[%clk 0:03:08.9]} 7... Be7 {[%clk 0:03:04.7]} 8. O-O {[%clk 0:03:10.2]}
8... O-O {[%clk 0:03:06.2]} 9. e3 {[%clk 0:03:11.7]} 9... Nbd7 {[%clk
0:03:07.6]} 10. Qe2 {[%clk 0:03:12.8]} 10... Ne4 {[%clk 0:03:07.9]} 11. Nfd2
{[%clk 0:03:11.2]} 11... Ndf6 {[%clk 0:02:57.7]} 12. Nc3 {[%clk 0:03:11.7]}
12... Nxc3 {[%clk 0:02:38.7]} 13. bxc3 {[%clk 0:03:13.6]} 13... Bg6 {[%clk
0:02:34.9]} 14. e4 {[%clk 0:03:01.8]} 14... c5 {[%clk 0:02:28.4]} 15. Qe3 {[%clk
0:02:51.1]} 15... cxd4 {[%clk 0:02:23.1]} 16. cxd4 {[%clk 0:02:53]} 16... e5
{[%clk 0:01:50.5]} 17. dxe5 {[%clk 0:02:28.8]} 17... Ng4 {[%clk 0:01:51.2]} 18.
Qf4 {[%clk 0:02:29.7]} 18... Nxe5 {[%clk 0:01:52.4]} 19. Nb3 {[%clk 0:01:48.2]}
19... Nd3 {[%clk 0:01:47.9]} 20. Qe3 {[%clk 0:01:48.6]} 20... Nxc1 {[%clk
0:01:36.1]} 21. Raxc1 {[%clk 0:01:50.5]} 21... a5 {[%clk 0:01:35]} 22. f4 {[%clk
0:01:47.8]} 22... a4 {[%clk 0:01:36.2]} 23. Nd4 {[%clk 0:01:46.9]} 23... Qb6
{[%clk 0:01:18.6]} 24. f5 {[%clk 0:01:25.4]} 24... Bh5 {[%clk 0:01:19.6]} 25. h3
{[%clk 0:01:23.6]} 25... f6 {[%clk 0:01:07.6]} 26. Rb1 {[%clk 0:01:19.6]} 26...
Qa7 {[%clk 0:01:07.5]} 27. e5 {[%clk 0:00:48.4]} 27... Bc5 {[%clk 0:01:07.9]}
28. Bd5+ {[%clk 0:00:43.2]} 28... Kh8 {[%clk 0:01:02.2]} 29. Rf4 {[%clk
0:00:41.7]} 29... fxe5 {[%clk 0:00:37.9]} 30. Qxe5 {[%clk 0:00:42]} 30... Rae8
{[%clk 0:00:37.6]} 31. Be6 {[%clk 0:00:41]} 31... Rd8 {[%clk 0:00:37.8]} 32. f6
{[%clk 0:00:09.4]} 32... Bxd4+ {[%clk 0:00:38.2]} 33. Rxd4 {[%clk 0:00:09.5]}
33... Qxd4+ {[%clk 0:00:37.1]} 34. Qxd4 {[%clk 0:00:10.8]} 34... Rxd4 {[%clk
0:00:39]} 0-1